[Event "RUS-chT Blitz Women 2018"]
[Site "Sochi"]
[Date "2018.10.10"]
[Round "1.9"]
[White "Voit, Daria"]
[Black "Maltseva, Aleksandra"]
[Result "1-0"]
[ECO "A05"]
[WhiteElo "2352"]
[BlackElo "1347"]
[Annotator "NA RC"]
[PlyCount "55"]
[EventDate "2018.10.10"]
[EventType "swiss"]
[EventCountry "RUS"]
[SourceTitle "playchess.com"]
[Source "ChessBase"]
[SourceQuality "1"]
[TimeControl "180+2"]

1. Nf3 {[%emt 0:00:00]} Nf6 {[%emt 0:00:00]} 2. c4 {[%emt 0:00:00]} g6 {[%emt 0:00:01]} 3. Nc3 {[%emt 0:00:03]} Bg7 {[%emt 0:00:01]} 4. d4 {[%emt 0:00:01]} O-O {[%emt 0:00:02]} 5. Bg5 {[%emt 0:00:01]} h6 {[%emt 0:00:04]} 6. Bh4 {[%emt 0:00:01]} d6 {[%emt 0:00:05]} 7. e3 {[%emt 0:00:01]} Nbd7 {[%emt 0:00:02]} 8. Be2 {[%emt 0:00:02]} c5 {[%emt 0:00:00]} 9. O-O {[%emt 0:00:03]} cxd4 {[%emt 0:00:03]} 10. exd4 {[%emt 0:00:02]} Nb6 {[%emt 0:00:05]} 11. b3 $14 {[%emt 0:00:10]} Kh7 {[%emt 0:00:17]} 12. h3 {[%emt 0:00:02]} Nh5 {[%emt 0:00:11]} 13. Bd3 {[%emt 0:00:10]} Nf4 {[%emt 0:00:15]} 14. Bc2 {[%emt 0:00:12]} Bf5 {[%emt 0:00:15]} 15. Re1 {[%emt 0:00:40]} Bxc2 {[%emt 0:00:29]} 16. Qxc2 {[%emt 0:00:02]} Re8 {[%emt 0:00:20]} 17. Qe4 {[%emt 0:00:20]} Ne6 {[%emt 0:00:18]} 18. Qxb7 {[%emt 0:00:10]} Nxd4 {[%emt 0:00:32]} 19. Nxd4 {[%emt 0:00:17]} Bxd4 {[%emt 0:00:02]} 20. Bxe7 {[%emt 0:00:13]} Rxe7 {[%emt 0:00:34]} 21. Rxe7 {[%emt 0:00:05]} Kg8 {[%emt 0:00:02]} 22. Rc1 {[%emt 0:00:08]} Qf8 23. Qe4 {[%emt 0:00:11]} Bxc3 {[%emt 0:00:04]} 24. Rxc3 {[%emt 0:00:01]} Re8 {[%emt 0:00:02]} 25. Rxe8 {[%emt 0:00:02]} Qxe8 {[%emt 0:00:01]} 26. Qxe8+ {[%emt 0:00:02]} Kg7 {[%emt 0:00:01]} 27. Rf3 {[%emt 0:00:02]} a6 {[%emt 0:00:04]} 28. Rxf7# {[%emt 0:00:02]} 1-0